[Event "Prague Festival-Masters 2022"]
[Site "Prague"]
[Date "2022.06.15"]
[Round "7.2"]
[White "Vidit, Santosh Gujrathi"]
[Black "Nguyen, Thai Dai Van"]
[Result "1/2-1/2"]
[ECO "D20"]
[WhiteElo "2723"]
[BlackElo "2612"]
[Annotator "TA"]
[PlyCount "44"]
[EventDate "2022.06.07"]
[EventType "tourn"]
[EventCountry "CZE"]
[SourceTitle "playchess.com"]
[Source "ChessBase"]
[SourceQuality "1"]
[TimeControl "40/5400+30:1800+30"]

{[%evp 9,44,20,35,37,54,50,50,46,60,0,0,0,40,38,28,32,30,0,0,0,0,-57,-79,-125,-42,-44,0,0,0,0,0,0,0,0,0,0,0]} 1. d4 {[%emt 0:00:29]} d5 {[%emt 0:00:20]} 2. c4 {[%emt 0:00:15]} dxc4 {[%emt 0:00:11]} 3. e4 {[%emt 0:00:37]} e5 {[%emt 0:00:18]} 4. Nf3 {[%emt 0:00:26]} Bb4+ {[%emt 0:00:12]} 5. Nc3 {[%emt 0:00:51]} Nf6 {[%emt 0:00:15]} 6. Nxe5 {[%emt 0:19:37] D20: Queen's Gambit Accepted: 3 e3 and 3 e4.} b5 {[%emt 0:00:14] [#] Prevents Qa4. aiming for ...Nxe4.} 7. f3 {[%emt 0:03:01]} O-O {[%emt 0:00:57]} 8. a4 {[%emt 0:05:35] White is slightly better.} c5 {[%emt 0:00:19] [#]} 9. dxc5 $146 {[%emt 0:15:01]} (9. axb5 cxd4 10. Ra4 (10. Bxc4 $2 dxc3 11. Ke2 Qe7 $19) 10... dxc3 $17) ({White should play} 9. Be3 $1 $14) ({Predecessor:} 9. Be3 cxd4 10. Qxd4 Qe7 11. axb5 Rd8 12. Qxc4 Be6 13. Qe2 Qc7 14. Nc6 Nxc6 15. bxc6 Qxc6 {½-½ (58) Pranav,A (2436)-Praggnanandhaa,R (2619) Cattolica 2022}) 9... Qa5 $11 {[%emt 0:18:18]} 10. Bf4 {[%emt 0:03:24]} Bxc3+ {[%emt 0:05:23]} 11. bxc3 {[%emt 0:00:07]} Qxc3+ {[%emt 0:01:01]} 12. Kf2 {[%emt 0:00:12]} Nh5 $1 {[%emt 0:03:21]} 13. g3 {[%emt 0:01:52]} Nxf4 {[%emt 0:06:03]} 14. gxf4 {[%emt 0:00:01] Chess con chili.} Nd7 $1 {[%emt 0:02:13]} 15. Be2 {[%emt 0:10:22]} ({White should try} 15. Nc6 $11) 15... Nxe5 $15 {[%emt 0:12:27]} 16. fxe5 {[%emt 0:00:14] [#]} b4 {[%emt 0:18:42]} ({Of course not} 16... Qxe5 $6 17. Qd5 Qf4 18. Qxa8 $11) (16... bxa4 $1 $17 {Hoping for ...Be6.} 17. Rxa4 Be6) 17. Qd6 {[%emt 0:05:05]} Be6 {[%emt 0:00:06] Strongly threatening ...b3.} (17... b3 $5 18. Rac1 Qa5 19. Bxc4 b2 $11) 18. Rhc1 $1 {[%emt 0:01:17] The position is equal.} Qb2 {[%emt 0:00:10] ...Rad8 is the strong threat.} 19. Rab1 {[%emt 0:02:55]} Qa2 {[%emt 0:03:01] And now ...Rad8 would win.} 20. Ra1 {[%emt 0:03:29]} ({Don't blunder} 20. Rxb4 $2 Rad8 21. Qe7 Rd2 $19) 20... Qb2 {[%emt 0:00:05]} 21. Rab1 {[%emt 0:01:43]} Qa2 {[%emt 0:00:06] White must now prevent ...Rfd8.} 22. Ra1 {[%emt 0:00:40]} ({Don't go for} 22. Rxb4 $2 Rad8 23. Qe7 Rd2 $19) 22... Qb2 {Weighted Error Value: White=0.13 (very precise) /Black=0.12 (very precise)} 1/2-1/2

[Event "Prague Festival-Masters 2022"]
[Site "Prague"]
[Date "2022.06.15"]
[Round "7.3"]
[White "Vallejo Pons, Francisco"]
[Black "Navara, David"]
[Result "1/2-1/2"]
[ECO "C65"]
[WhiteElo "2704"]
[BlackElo "2682"]
[Annotator "TA"]
[PlyCount "154"]
[EventDate "2022.06.07"]
[EventType "tourn"]
[EventCountry "CZE"]
[SourceTitle "playchess.com"]
[Source "ChessBase"]
[SourceQuality "1"]
[TimeControl "40/5400+30:1800+30"]

{[%evp 11,154,4,9,0,0,0,0,0,14,12,20,17,20,31,16,21,12,12,42,27,25,10,26,0,4,0,0,0,0,0,0,14,8,0,0,0,0,0,0,0,0,0,0,0,80,74,73,74,74,72,74,74,74,74,74,39,62,62,67,-33,-31,-39,-25,-29,-19,-15,-4,-26,-26,-31,-26,-31,-23,-38,-38,-37,-32,-41,-35,-43,-17,-32,-32,-32,-32,-32,-32,-32,-32,-32,-32,-32,-32,-32,-32,-32,-32,-32,-32,-32,-32,-32,-32,-32,-32,-32,-32,-32,-32,-32,-32,-32,0,-32,-32,-32,0,-32,-32,-32,0,-32,-8,-8,-8,-8,-8,-8,-8,-8,-8,-8,-8,-8,-8,-8,-8,-8,-8,-8,-8,-8,-8,-8,-8]} 1. e4 {[%emt 0:00:05] ChessBase Website} e5 {[%emt 0:00:03]} 2. Nf3 {[%emt 0:00:08]} Nc6 {[%emt 0:00:03]} 3. Bb5 {[%emt 0:00:05]} Nf6 {[%emt 0:00:04]} 4. d3 {[%emt 0:00:20]} Bc5 {[%emt 0:00:06]} 5. O-O {[%emt 0:00:06]} Nd4 {[%emt 0:00:42]} 6. Nxd4 {[%emt 0:00:05]} Bxd4 {[%emt 0:00:06]} 7. c3 {[%emt 0:00:12] C65: Ruy Lopez: Berlin Defence (3...Nf6), unusual lines and 4 0-0 Bc5.} Bb6 {[%emt 0:00:05]} 8. Ba4 $1 {[%emt 0:00:30][%mdl 4] is currently scoring better than 8.Bg5.} c6 {[%emt 0:01:10]} 9. Na3 {[%emt 0:01:22]} O-O {[%emt 0:03:07]} 10. Bg5 {[%emt 0:00:24][%cal Bc1g5,Bg5h4,Bh4g3][%mdl 32]} h6 {[%emt 0:01:32]} 11. Bh4 {[%emt 0:01:57]} d5 {[%emt 0:18:23]} 12. exd5 {[%emt 0:02:10]} cxd5 {[%emt 0:00:14] [#]} 13. Re1 $146 {[%emt 0:04:32]} ({Predecessor:} 13. Bb3 g5 14. Bg3 Re8 15. Re1 Bc7 16. Nc2 Bg4 17. Qd2 d4 18. h3 Bf5 19. Ba4 {½-½ (69) Topalov,V (2785)-Andreikin,D (2709) Khanty-Mansiysk 2014 CBM 160 [ChessBase Website]}) 13... g5 {[%emt 0:04:12]} 14. Bg3 {[%emt 0:00:28]} Bg4 {[%emt 0:00:35]} 15. Qd2 {[%emt 0:18:16]} e4 {[%emt 0:00:26]} 16. Bb3 {[%emt 0:08:59]} Re8 {[%emt 0:19:55]} 17. Nb5 {[%emt 0:16:29]} Nh5 {[%emt 0:01:36]} 18. dxe4 {[%emt 0:01:35]} Nxg3 {[%emt 0:00:23]} 19. hxg3 {[%emt 0:01:06] Hoping for e5.} a6 {[%emt 0:00:08]} 20. Nd4 {[%emt 0:02:59]} dxe4 {[%emt 0:00:36]} 21. Re3 {[%emt 0:01:17]} Qf6 {[%emt 0:12:49]} 22. Rae1 {[%emt 0:01:24]} Rad8 {[%emt 0:08:44][%cal Rb6d4]} 23. Rxe4 {[%emt 0:01:32]} Rxe4 {[%emt 0:00:12]} 24. Rxe4 {[%emt 0:00:04]} Bf5 {[%emt 0:00:08] This bishop pair is nice.} 25. Re3 {[%emt 0:04:24][%cal Be4e3,Be3f3,Bf3f6][%mdl 32]} Bxd4 {[%emt 0:18:45]} 26. cxd4 {[%emt 0:00:45]} Rxd4 {[%emt 0:00:06]} 27. Qc3 {[%emt 0:01:54] And now Rf3 would win.} Qd8 {[%emt 0:01:01]} (27... g4 $11 {keeps the balance.}) 28. Qe1 $16 {[%emt 0:05:16] Black must now prevent Re8+.} Kf8 {[%emt 0:06:38] [#] Against Re8+} 29. Rf3 $1 $36 {[%emt 0:04:21][%mdl 2048] White is on the roll.} Bg6 {[%emt 0:00:07] [#]} 30. Qe5 $1 {[%emt 0:02:55]} Kg8 {[%emt 0:00:03][%cal Bf8g8,Bg8h7,Bh7g7][%mdl 32] Prevents Qh8+.} 31. Rf6 {[%emt 0:12:33] White wants to mate with Rxg6+.} Kh7 {[%emt 0:00:05]} 32. f4 {[%emt 0:00:57] Strongly threatening f5.} ({Reject} 32. Bxf7 Rd1+ 33. Kh2 Rh1+ 34. Kxh1 Qd1+ 35. Kh2 Qh5+ 36. Kg1 Qd1+ 37. Kh2 Qh5+ 38. Kg1 Qd1+ 39. Kh2 $11) 32... Rd7 {[%emt 0:03:48]} 33. fxg5 {[%emt 0:02:33]} (33. f5 $5 {[%cal Rf5g6]} Bh5 34. g4 $16) 33... Re7 {[%emt 0:00:16]} 34. Qf4 {[%emt 0:01:33][%csl LRf7,LRh6] White is more active.} hxg5 {[%emt 0:00:10]} 35. Qf2 {[%emt 0:02:45]} ({Better is} 35. Qxg5 $14 Qd4+ 36. Kh2) 35... Kg7 {[%emt 0:00:54] ...Rc7 is the strong threat.} 36. Rf3 {[%emt 0:01:03]} Qd6 {[%emt 0:00:45]} 37. Re3 {[%emt 0:01:07]} Rc7 {[%emt 0:00:27]} 38. Re1 {[%emt 0:00:21]} a5 {[%emt 0:00:27]} 39. Qe3 {[%emt 0:00:27]} Qc5 {[%emt 0:00:29]} 40. Kf2 {[%emt 0:00:00]} b5 {[%emt 0:00:00]} 41. g4 {[%emt 0:10:12]} Kf6 {[%emt 0:04:53]} 42. a3 {[%emt 0:02:38]} Qxe3+ {[%emt 0:04:51]} 43. Rxe3 $15 {[%emt 0:01:07][%mdl 4096] Endgame KRB-KRB} Rd7 {[%emt 0:00:16]} 44. Ke1 {[%emt 0:02:29]} Rd4 {[%emt 0:04:45]} 45. Bd1 {[%emt 0:00:03]} Bd3 {[%emt 0:00:20]} 46. Re8 {[%emt 0:06:18]} Re4+ {[%emt 0:14:56]} 47. Rxe4 {[%emt 0:01:12]} Bxe4 {[%emt 0:00:04] KB-KB} 48. b4 {[%emt 0:05:57]} axb4 {[%emt 0:00:13]} ({But not} 48... Bxg2 49. bxa5 Ke5 50. Kf2 $11) 49. axb4 {[%emt 0:00:01]} Bxg2 {[%emt 0:00:09]} 50. Kf2 {[%emt 0:00:10]} Bd5 {[%emt 0:03:20]} 51. Ke3 {[%emt 0:00:24]} Ke5 {[%emt 0:00:05]} 52. Be2 {[%emt 0:00:30]} Bc4 {[%emt 0:00:06]} 53. Bd1 {[%emt 0:02:10]} Be6 {[%emt 0:01:50]} 54. Bf3 {[%emt 0:01:09]} Bc8 {[%emt 0:00:27]} 55. Bd1 {[%emt 0:00:47]} Bb7 {[%emt 0:00:30]} 56. Bc2 {[%emt 0:00:34]} Bg2 {[%emt 0:00:46]} 57. Bd3 {[%emt 0:00:48]} Bc6 {[%emt 0:00:07]} 58. Bc2 {[%emt 0:00:35]} Bd7 {[%emt 0:01:38]} 59. Bd1 {[%emt 0:00:09]} f6 {[%emt 0:00:16]} 60. Be2 {[%emt 0:01:28]} Bc6 {[%emt 0:00:06]} 61. Bd3 {[%emt 0:00:41]} Bd7 {[%emt 0:00:17]} 62. Be2 {[%emt 0:00:03]} Be6 {[%emt 0:00:16]} 63. Bf3 {[%emt 0:01:06]} Bd7 {[%emt 0:01:07]} 64. Bd1 {[%emt 0:00:36]} Bc6 {[%emt 0:00:22]} 65. Bc2 {[%emt 0:00:18]} Bd7 {[%emt 0:00:17]} 66. Bd1 $1 {[%emt 0:00:55]} f5 {[%emt 0:00:00]} 67. gxf5 {[%emt 0:00:00] The position is equal.} Kxf5 {[%emt 0:00:00]} 68. Kf3 {[%emt 0:00:30]} Ke5 {[%emt 0:00:00]} 69. Be2 {[%emt 0:00:45]} Be8 {[%emt 0:00:02] ( -> ...Bh5+)} 70. Kg3 {[%emt 0:00:15]} Kf5 {[%emt 0:00:31]} 71. Bd3+ {[%emt 0:00:10]} Kf6 {[%emt 0:00:04]} 72. Be2 {[%emt 0:00:08]} Bd7 {[%emt 0:00:07]} 73. Bd3 {[%emt 0:00:11]} Ke5 {[%emt 0:00:09]} 74. Be2 {[%emt 0:00:13]} Kd4 {[%emt 0:00:04]} 75. Bxb5 {[%emt 0:00:49]} Bxb5 {[%emt 0:00:04]} 76. Kg4 {[%emt 0:00:03]} Kc4 {[%emt 0:00:04]} 77. Kxg5 {[%emt 0:00:03]} Kxb4 {[%emt 0:00:04] Weighted Error Value: White=0.06 (flawless) /Black=0.06 (flawless)} 1/2-1/2

[Event "Prague Festival-Masters 2022"]
[Site "Prague"]
[Date "2022.06.15"]
[Round "7.4"]
[White "Salem, A.R. Saleh"]
[Black "Anton Guijarro, David"]
[Result "1-0"]
[ECO "D43"]
[WhiteElo "2690"]
[BlackElo "2691"]
[Annotator "TA"]
[PlyCount "117"]
[EventDate "2022.06.07"]
[EventType "tourn"]
[EventCountry "CZE"]
[SourceTitle "playchess.com"]
[Source "ChessBase"]
[SourceQuality "1"]
[TimeControl "40/5400+30:1800+30"]

{[%evp 14,117,27,16,16,6,28,12,31,15,39,0,19,10,40,0,0,-4,-11,-25,-13,-32,0,0,66,87,79,60,66,50,50,42,61,10,66,34,34,41,52,54,133,133,131,129,114,121,199,191,261,229,263,257,243,250,262,259,252,256,447,445,429,439,364,401,357,153,237,244,244,244,236,214,216,203,266,296,343,335,364,319,279,270,393,393,354,398,372,339,396,383,416,416,569,562,1234,1347,1208,949,5768,3797,5768,3780,5501,6278,3204,1875]} 1. d4 {[%emt 0:00:01]} Nf6 {[%emt 0:00:23]} 2. c4 {[%emt 0:00:05]} e6 {[%emt 0:00:16]} 3. Nf3 {[%emt 0:00:05]} d5 {[%emt 0:00:22]} 4. Nc3 {[%emt 0:00:05]} c6 {[%emt 0:00:43]} 5. Bg5 {[%emt 0:00:07]} h6 {[%emt 0:00:19]} 6. Bxf6 {[%emt 0:00:05]} Qxf6 {[%emt 0:00:06]} 7. e3 {[%emt 0:00:03]} Nd7 {[%emt 0:10:45]} 8. Be2 {[%emt 0:00:07]} Be7 {[%emt 0:06:02] D43: Semi-Slav: 5 Bg5 h6.} 9. O-O {[%emt 0:00:14]} O-O {[%emt 0:00:28]} 10. Qc2 {[%emt 0:01:25] [#]} g5 $146 {[%emt 0:01:55] The position is equal.} ({Predecessor:} 10... Rd8 11. Rac1 Bf8 12. Rfd1 Qe7 13. h3 b6 14. cxd5 cxd5 15. Bd3 Bb7 16. Qe2 a6 {½-½ (27) Mirkowski,P (2425)-Broniek,M (2485) ICCF email 2020}) 11. cxd5 {[%emt 0:01:19]} exd5 {[%emt 0:01:12]} 12. Bd3 {[%emt 0:00:06]} g4 {[%emt 0:09:27]} 13. Nd2 {[%emt 0:00:10]} Nb6 {[%emt 0:00:24]} 14. Ne2 {[%emt 0:03:09]} h5 {[%emt 0:08:07]} 15. Ng3 {[%emt 0:08:01]} Qg5 {[%emt 0:01:23]} 16. f4 {[%emt 0:01:52]} Qh6 {[%emt 0:00:48]} 17. Nb3 {[%emt 0:02:07]} Bd7 {[%emt 0:06:13]} 18. Nc5 $36 {[%emt 0:02:48][%mdl 2048] White is more active.} Bxc5 {[%emt 0:00:34]} (18... Bc8 $11) 19. dxc5 $14 {[%emt 0:00:42]} Nc8 {[%emt 0:00:08]} 20. Rae1 {[%emt 0:18:19]} Ne7 {[%emt 0:12:18]} 21. Ne2 {[%emt 0:00:05]} Rfe8 {[%emt 0:01:48]} 22. Nd4 {[%emt 0:00:13]} Qf6 {[%emt 0:01:29]} 23. Re2 {[%emt 0:01:58]} (23. a4 $14) 23... Kg7 {[%emt 0:04:27]} (23... Ng6 $11) 24. Qc3 {[%emt 0:00:19] White is much more active.} Ng8 {[%emt 0:01:10]} 25. Rfe1 {[%emt 0:06:08][%cal Bf1e1,Be1e4,Be4e5][%mdl 32]} Nh6 {[%emt 0:01:12]} 26. g3 {[%emt 0:08:14]} Re7 {[%emt 0:03:29] Black is on the road to losing.} (26... Kf8 $14) 27. e4 $16 {[%emt 0:11:00]} dxe4 {[%emt 0:00:11]} 28. Rxe4 {[%emt 0:00:03]} (28. Bxe4 $6 Rae8 $14) 28... Rxe4 {[%emt 0:01:27]} 29. Rxe4 {[%emt 0:00:05][%cal Oe4e7]} (29. Bxe4 Re8 $14) 29... h4 {[%emt 0:22:07]} (29... Re8 $16 {is a better defense.}) 30. Re5 {[%emt 0:01:25][%cal Od4c6] Hoping for Nxc6!} hxg3 {[%emt 0:00:12]} (30... Ng8 $142 31. Nb3 Be6) 31. hxg3 {[%emt 0:01:49]} Kf8 {[%emt 0:03:30] [#]} 32. Nb5 $1 {[%emt 0:02:11][%mdl 512] Threatens to win with Nc7.} Ng8 {[%emt 0:00:27]} (32... cxb5 $2 33. Re8+ $3 {[%mdl 512]} Kg7 34. Qxf6+ Kxf6 35. Rxa8 $18) 33. Nd6 {[%emt 0:00:08]} Be6 {[%emt 0:01:42]} 34. Bf5 {[%emt 0:10:56]} Bd5 {[%emt 0:01:07]} 35. Bxg4 {[%emt 0:00:16]} b6 $2 {[%emt 0:00:43]} (35... Qh6 36. Bf3 Nf6) 36. Bc8 $18 {[%emt 0:03:27]} Rxc8 {[%emt 0:00:42]} 37. Nxc8 {[%emt 0:00:03]} Qh6 {[%emt 0:00:14] [#]} 38. Rxd5 $1 {[%emt 0:02:33]} cxd5 {[%emt 0:00:04][%mdl 4096] Endgame KQN-KQN} 39. Nd6 {[%emt 0:06:04]} (39. Nxa7 bxc5 40. Qxc5+ Kg7 $18) (39. c6 $18 {is more deadly. Strongly threatening c7.} Qe6 40. Nd6 $1 {[%mdl 512]}) 39... Qh5 {[%emt 0:01:15] [#]} (39... Qg6 $16 {might work better.}) 40. cxb6 $1 {[%emt 0:00:00]} axb6 {[%emt 0:00:00]} 41. Qc8+ {[%emt 0:14:07]} Kg7 {[%emt 0:02:50]} 42. Nf5+ {[%emt 0:04:16]} Kh7 {[%emt 0:06:04]} 43. Qc2 {[%emt 0:00:16] Against Qd1+} Kg6 {[%emt 0:07:31]} 44. Ne3+ {[%emt 0:04:40][%cal Bf5e3,Be3g4,Bg4e5,Be5d3][%mdl 32]} Kg7 {[%emt 0:00:10]} 45. Qf5 {[%emt 0:00:54]} Qf3 {[%emt 0:08:26]} 46. Qg4+ {[%emt 0:00:04]} ({Weaker is} 46. Nxd5 Qd1+ 47. Kf2 Qd2+ 48. Kf3 Qd1+ 49. Ke3 Qc1+ 50. Kf3 Qf1+ 51. Ke3 Qc1+ 52. Kd4 (52. Kf3 Qf1+ 53. Ke3 Qc1+ $16) 52... Qxb2+ 53. Nc3 (53. Ke3 Qxa2 54. g4 Qg2 $14) 53... Ne7 54. Qe5+ Kf8 $16) ({Less strong is} 46. Qg5+ Kh7 47. Nxd5 b5 $18) 46... Qxg4 {[%emt 0:00:04]} 47. Nxg4 {[%emt 0:00:04] KN-KN} Kg6 {[%emt 0:00:20]} (47... Kf8 $142 48. Kf2 Ke7) 48. Kf2 {[%emt 0:00:31]} Kf5 {[%emt 0:00:15]} 49. Kf3 {[%emt 0:00:04]} Ke6 {[%emt 0:01:28]} 50. Ne5 {[%emt 0:00:50]} Ne7 {[%emt 0:01:07]} 51. g4 {[%emt 0:00:17][%cal Bg3g4,Bg4g5,Bg5g6,Bg6g7][%mdl 32]} f6 {[%emt 0:00:47]} 52. Nd3 {[%emt 0:00:05]} f5 {[%emt 0:01:30]} 53. g5 {[%emt 0:00:50] White is clearly winning.} d4 {[%emt 0:00:23]} 54. a4 {[%emt 0:00:34]} Kd5 {[%emt 0:02:21]} 55. Ne5 {[%emt 0:00:34]} Kc5 {[%emt 0:00:27]} 56. g6 {[%emt 0:01:02]} Kb4 {[%emt 0:00:51]} 57. g7 {[%emt 0:00:05][%cal Oe5c6] Black must now prevent Nc6+!} Ng8 {[%emt 0:00:08]} 58. Ke2 {[%emt 0:01:37]} Kxa4 {[%emt 0:00:10]} 59. Kd3 {[%emt 0:00:26] Weighted Error Value: White=0.12 (very precise) /Black=0.31} 1-0

[Event "Prague Festival-Masters 2022"]
[Site "Prague"]
[Date "2022.06.15"]
[Round "7.5"]
[White "Shankland, Sam"]
[Black "Maghsoodloo, Parham"]
[Result "1-0"]
[ECO "B90"]
[WhiteElo "2718"]
[BlackElo "2699"]
[Annotator "TA"]
[PlyCount "151"]
[EventDate "2022.06.07"]
[EventType "tourn"]
[EventCountry "CZE"]
[SourceTitle "playchess.com"]
[Source "ChessBase"]
[SourceQuality "1"]
[TimeControl "40/5400+30:1800+30"]

{[%evp 12,151,0,0,2,12,13,0,0,0,6,7,6,0,-5,-13,20,14,26,17,69,64,35,-4,21,11,73,62,113,50,47,47,47,39,39,39,39,39,39,40,39,47,24,47,54,0,0,-8,-8,-8,-3,-24,0,0,0,0,0,0,26,26,17,0,6,5,16,4,5,0,0,0,0,0,83,82,114,114,114,115,119,11,60,0,0,0,11,8,144,146,135,138,144,121,300,306,295,52,52,0,205,186,187,187,188,179,190,187,128,132,74,82,737,729,759,730,672,623,592,510,1211,1212,1178,1150,1150,1060,1060,986,5839,5544,4133,2173,29964,29963,29976,29977,29977,29978,29978,29979,29979,29980,29982,29975]} 1. e4 {[%emt 0:00:11]} c5 {[%emt 0:00:07]} 2. Nf3 {[%emt 0:00:07]} d6 {[%emt 0:00:04]} 3. d4 {[%emt 0:00:07]} cxd4 {[%emt 0:00:03]} 4. Nxd4 {[%emt 0:00:05]} Nf6 {[%emt 0:00:05]} 5. Nc3 {[%emt 0:00:05]} a6 {[%emt 0:00:03]} 6. h3 {[%emt 0:00:24]} e5 {[%emt 0:00:38]} 7. Nb3 {[%emt 0:00:07]} Be6 {[%emt 0:00:30] B90: Sicilian Najdorf: Unusual White 6th moves, 6 Be3 Ng4 and 6 Be3 e5.} 8. f4 {[%emt 0:00:11]} b5 {[%emt 0:00:11]} 9. f5 {[%emt 0:00:08]} Bc8 {[%emt 0:08:56] The position is equal.} (9... Nxe4 $2 10. Nxe4 Qh4+ 11. Nf2 $18) 10. Bg5 {[%emt 0:00:15]} Nbd7 {[%emt 0:02:03]} 11. a4 {[%emt 0:00:22]} b4 {[%emt 0:09:14]} 12. Nd5 {[%emt 0:01:00]} Bb7 {[%emt 0:00:19]} 13. Qf3 {[%emt 0:00:30] [#]} (13. Bc4 $5 {[%cal Re1g1]}) 13... Bxd5 $146 {[%emt 0:04:50]} ({Predecessor:} 13... Be7 14. Bxf6 Nxf6 15. Nxf6+ Bxf6 16. O-O-O Rc8 17. Kb1 O-O 18. Bd3 d5 19. h4 dxe4 20. Bxe4 {½-½ (42) Shpakovsky,A (2544)-Dothan,Y (2546) ICCF email 2020}) 14. exd5 {[%emt 0:00:24]} Be7 {[%emt 0:00:13][%cal Of6d5]} 15. O-O-O {[%emt 0:07:00]} Qc7 {[%emt 0:02:27]} (15... Nb6 $11) 16. g4 $14 {[%emt 0:07:39]} Nb6 {[%emt 0:07:43]} 17. Bd2 {[%emt 0:08:49]} Rc8 {[%emt 0:05:47][%csl Gc8][%cal Rc7c2]} (17... Nbxd5 $2 18. g5 Rc8 19. Na1 $18 (19. Bd3 e4 $14)) (17... Nfxd5 $2 18. a5 $18) 18. Bd3 {[%emt 0:00:41] Active counter play!} h6 {[%emt 0:15:10]} (18... Nfxd5 $2 19. a5 $18) (18... Nfd7 $11) 19. h4 $1 $16 {[%emt 0:06:55]} Nc4 {[%emt 0:19:11]} (19... Nxa4 20. g5 $16) (19... Nfxd5 $2 20. a5 $18) (19... Nbd7 $14) 20. g5 {[%emt 0:07:57]} (20. Bxb4 e4 21. Bxe4 Ne5 $17) ({White should try} 20. Kb1 $1 $16) 20... e4 $1 $14 {[%emt 0:00:06]} 21. Bxe4 {[%emt 0:00:04] And now Bf4 would win.} Ne5 {[%emt 0:00:06]} 22. Qe2 {[%emt 0:00:54]} Nxe4 {[%emt 0:01:36]} 23. Qxe4 {[%emt 0:00:05] Threatens to win with Kb1.} Qc4 {[%emt 0:00:27]} 24. Qxc4 {[%emt 0:00:50]} Rxc4 {[%emt 0:00:05]} 25. Na5 {[%emt 0:05:25]} Rg4 {[%emt 0:01:52][%cal Rh6g5]} 26. f6 {[%emt 0:01:35]} gxf6 {[%emt 0:01:03]} 27. gxh6 {[%emt 0:00:02]} Bf8 {[%emt 0:01:28]} 28. Rdf1 {[%emt 0:02:12]} (28. Nc6 $14) 28... Bxh6 $11 {[%emt 0:00:33]} 29. Rxf6 {[%emt 0:02:23]} Bxd2+ {[%emt 0:00:20]} 30. Kxd2 {[%emt 0:00:02]} Ke7 {[%emt 0:03:25]} 31. Rf5 {[%emt 0:05:18]} Rd4+ {[%emt 0:04:09]} 32. Ke2 {[%emt 0:06:13][%cal Of5e5]} Rxd5 {[%emt 0:00:22]} 33. Nc4 {[%emt 0:00:21]} (33. Nc6+ $2 Ke6 34. Rxe5+ dxe5 35. Nxb4 Rd4 36. Nxa6 Rdxh4 37. Nc7+ Kd6 38. Nb5+ Kc5 39. Rxh4 Rxh4 $19) 33... Ke6 {[%emt 0:03:56]} 34. Rf4 {[%emt 0:02:11]} a5 {[%emt 0:04:19]} 35. Ne3 {[%emt 0:10:21]} Rc5 {[%emt 0:00:01]} 36. Rhf1 {[%emt 0:01:43]} Rh7 {[%emt 0:01:33]} 37. b3 {[%emt 0:01:46]} Kd7 {[%emt 0:04:24]} (37... Ng6 {feels hotter.} 38. Rf6+ Ke7 39. R6f5 Ke6) 38. Rd1 {[%emt 0:02:20]} Rh6 {[%emt 0:00:26]} 39. Rdd4 {[%emt 0:02:27]} Re6 {[%emt 0:01:18]} 40. Kd2 {[%emt 0:00:00]} Rc3 {[%emt 0:00:00]} 41. Rf5 {[%emt 0:09:42]} Re8 {[%emt 0:07:24]} (41... Nc6 $1 $11 {remains equal.} 42. Rd3 (42. Rxf7+ $2 Ke8 $19) 42... Rxd3+ 43. Kxd3 (43. cxd3 Nd4 $11) 43... Ne5+ 44. Ke2 Rh6) 42. h5 $1 $16 {[%emt 0:03:32][%cal Bh4h5,Bh5h6,Bh6g7][%mdl 32]} Ke6 {[%emt 0:25:03][%cal Oc3e3]} 43. Rdf4 $1 {[%emt 0:01:01]} Rc5 {[%emt 0:00:00]} 44. Rf6+ {[%emt 0:10:31]} Ke7 {[%emt 0:00:00]} 45. Rh6 {[%emt 0:00:49]} (45. h6 $1 $16) 45... Kd7 {[%emt 0:00:00]} (45... Rg8 $1 $11 {should be considered.}) 46. Rh7 {[%emt 0:02:57]} (46. Rf1 $14) 46... Rg8 $1 $11 {[%emt 0:00:00]} 47. h6 {[%emt 0:02:19]} Ke6 {[%emt 0:00:00]} 48. Rg7 {[%emt 0:01:30]} Rxg7 {[%emt 0:00:00]} (48... Rh8 $1 $11) 49. hxg7 {[%emt 0:00:01][%mdl 4096] Endgame KRN-KRN} Rc8 {[%emt 0:00:00]} 50. Nf5 {[%emt 0:01:05] Nh6 is the strong threat.} Rg8 {[%emt 0:00:00]} 51. Ke3 {[%emt 0:01:29]} f6 $2 {[%emt 0:00:00]} (51... Nc6 $16 {keeps fighting.}) 52. Rf1 $18 {[%emt 0:10:39]} Ng6 {[%emt 0:00:00]} 53. Nd4+ $2 {[%emt 0:01:11]} (53. Kd3 $1 $18) 53... Kf7 $14 {[%emt 0:00:00]} 54. Nf5 $2 {[%emt 0:01:56]} (54. Rg1 $14) 54... Ke6 $1 $18 {[%emt 0:00:00]} 55. Kd4 {[%emt 0:02:40] Hoping for Kc4.} Ne7 {[%emt 0:01:27]} 56. Re1+ $1 {[%emt 0:00:39]} Kxf5 {[%emt 0:00:02]} 57. Rxe7 {[%emt 0:00:06] KR-KR} Kg6 {[%emt 0:00:02]} 58. Ra7 {[%emt 0:00:56]} f5 {[%emt 0:01:18]} ({Better is} 58... Rxg7 $18 59. Rxa5 f5) 59. Rxa5 $16 {[%emt 0:00:52] aiming for Ra7.} Rxg7 {[%emt 0:00:06]} 60. Rd5 {[%emt 0:00:44]} Re7 $2 {[%emt 0:02:17][%mdl 8192]} (60... Rc7 $16) 61. Rxd6+ $18 {[%emt 0:00:53]} Kg5 {[%emt 0:00:01]} 62. Kc5 {[%emt 0:01:16]} f4 {[%emt 0:01:22]} 63. Kxb4 {[%emt 0:00:05]} f3 {[%emt 0:00:05]} 64. Rd1 $1 {[%emt 0:00:13]} Rb7+ {[%emt 0:01:31]} (64... Kf4 $142 65. Rf1 Kg3) 65. Ka5 {[%emt 0:01:55]} Kf4 {[%emt 0:00:07] [#]} 66. b4 $1 {[%emt 0:00:18]} Ra7+ {[%emt 0:00:09]} 67. Kb5 {[%emt 0:00:04]} Rb7+ {[%emt 0:00:03]} 68. Kc5 {[%emt 0:00:24] Strongly threatening a5.} ({Weaker is} 68. Kc4 Ke3 $16) 68... f2 {[%emt 0:01:40]} 69. a5 {[%emt 0:00:33][%cal Ba4a5,Ba5a6][%mdl 32] Threatening mate with Rf1.} Ke3 {[%emt 0:00:08]} 70. Rf1 {[%emt 0:01:41] White threatens b5 and mate.} Rc7+ {[%emt 0:01:13]} 71. Kb6 {[%emt 0:00:04] White mates.} Rxc2 {[%emt 0:00:04]} 72. a6 {[%emt 0:00:36]} Ke2 {[%emt 0:01:26] [#]} 73. Rxf2+ $3 {[%emt 0:01:07][%mdl 512]} Kxf2 {[%emt 0:00:05] [#]} 74. b5 $1 {[%emt 0:00:03][%cal Bb4b5,Bb5b6][%mdl 32]} Ke3 {[%emt 0:00:11]} 75. Ka7 {[%emt 0:05:00]} Rc8 76. b6 {[%emt 0:00:00] Weighted Error Value: White=0.21 (precise) /Black=0.19 (very precise)} 1-0